fUSD/lending_fUSD_20250606
["ID","MTS","AMOUNT","RATE_DAILY","PERIOD"]
[364636312,1749169874596,-151.0,0.00030986,7]
[364636313,1749169874605,-151.0,0.00030986,7]
[364636314,1749169874615,-151.0,0.00030986,7]
[364636315,1749169874625,-151.0,0.00030986,7]
[364636316,1749169874634,-151.0,0.00030986,7]
[364636317,1749169874644,-151.0,0.00030986,7]
[364636318,1749169874653,-480.0,0.00030986,7]
[364636319,1749169874663,-480.0,0.00030986,7]
[364636320,1749169874673,-628.56725656,0.00030986,7]
[364636321,1749169874683,-151.0,0.00030986,7]
[364636322,1749169874692,-151.0,0.00030986,7]
[364636323,1749169874704,-151.0,0.00030986,7]
[364636324,1749169874714,-250.573643,0.00030986,7]
[364636325,1749169874724,-250.573643,0.00030986,7]
[364636326,1749169874733,-151.0,0.00030986,7]
[364636327,1749169874743,-480.0,0.00030986,7]
[364636328,1749169874753,-151.0,0.00030986,7]
[364636329,1749169874762,-577.19,0.00030986,7]
[364636330,1749169874772,-480.0,0.00030986,7]
[364636331,1749169874782,-480.0,0.00030986,7]
[364636332,1749169874791,-151.0,0.00030986,7]
[364636333,1749169874801,-480.0,0.00030986,7]
[364636334,1749169874810,-480.0,0.00030986,7]
[364636335,1749169874819,-528.217982,0.00030986,7]
[364636336,1749169874829,-151.0,0.00030986,7]
[364636337,1749169874838,-528.217982,0.00030986,7]
[364636338,1749169874847,-417.594066,0.00030986,7]
[364636339,1749169874857,-480.0,0.00030986,7]
[364636340,1749169874866,-417.594066,0.00030986,7]
[364636341,1749169874875,-480.0,0.00030986,7]
[364636342,1749169874885,-480.0,0.00030986,7]
[364636343,1749169874894,-543.3,0.00030986,7]
[364636344,1749169874904,-164.989549,0.00030986,7]
[364636345,1749169874913,-480.0,0.00030986,7]
[364636346,1749169874922,-560.45,0.00030986,7]
[364636347,1749169874931,-164.989549,0.00030986,7]
[364636348,1749169874941,-480.0,0.00030986,7]
[364636349,1749169874951,-480.0,0.00030986,7]
[364636350,1749169874961,-480.0,0.00030986,7]
[364636351,1749169874970,-357.41,0.00030986,7]
[364636352,1749169874979,-480.0,0.00030986,7]
[364636353,1749169874988,-480.0,0.00030986,7]
[364636354,1749169874997,-480.0,0.00030986,7]
[364636355,1749169875007,-480.0,0.00030986,7]
[364636356,1749169875016,-624.38,0.00030986,30]
[364636357,1749169875026,-288.13619767,0.00030986,7]
[364636358,1749169875035,-480.0,0.00030986,7]
[364636359,1749169875044,-564.7,0.00030986,7]
[364636360,1749169875054,-668.56,0.00030986,7]
[364636361,1749169875062,-480.0,0.00030986,7]
[364636362,1749169875072,-480.0,0.00030986,7]
[364636363,1749169875081,-480.0,0.00030986,7]
[364636364,1749169875090,-480.0,0.00030986,7]
[364636365,1749169875100,-480.0,0.00030986,7]
[364636366,1749169875110,-521.44,0.00030986,7]
[364636367,1749169875119,-480.0,0.00030986,7]
[364636368,1749169875129,-480.0,0.00030986,7]
[364636369,1749169875138,-1135.23,0.00030986,7]
[364636370,1749169875148,-1566.98,0.00030986,7]
[364636371,1749169875157,-480.0,0.00030986,7]
[364636372,1749169875167,-850.57,0.00030986,7]
[364636373,1749169875176,-480.0,0.00030986,7]
[364636374,1749169875186,-480.0,0.00030986,7]
[364636375,1749169875196,-1000.98,0.00030986,7]
[364636376,1749169875207,-731.2,0.00030986,7]
[364636377,1749169875216,-199.874455,0.00030986,7]
[364636378,1749169875226,-791.42,0.00030986,7]
[364636379,1749169875235,-647.48,0.00030986,7]
[364636380,1749169875244,-199.874455,0.00030986,7]
[364636381,1749169875253,-669.94,0.00030986,7]
[364636382,1749169875263,-1235.47,0.00030986,7]
[364636383,1749169875272,-785.34,0.00030986,7]
[364636384,1749169875281,-151.0,0.00030986,7]
[364636385,1749169875290,-519.02,0.00030986,7]
[364636386,1749169875299,-151.0,0.00030986,7]
[364636387,1749169875308,-151.0,0.00030986,7]
[364636388,1749169875318,-1309.06,0.00030986,7]
[364636389,1749169875327,-921.0,0.00030986,7]
[364636390,1749169875336,-1017.54,0.00030986,7]
[364636391,1749169875348,-1318.19,0.00030986,7]
[364636392,1749169875358,-151.0,0.00030986,7]
[364636393,1749169875367,-480.0,0.00030986,7]
[364636394,1749169875377,-642.93,0.00030986,7]
[364636395,1749169875387,-480.0,0.00030986,7]
[364636396,1749169875396,-571.7,0.00030986,7]
[364636397,1749169875405,-151.0,0.00030986,7]
[364636398,1749169875415,-638.63,0.00030986,7]
[364636399,1749169875425,-172.08256,0.00030986,7]
[364636400,1749169875435,-480.0,0.00030986,7]
[364636401,1749169875445,-648.12,0.00030986,7]
[364636402,1749169875454,-480.0,0.00030986,7]
[364636403,1749169875464,-556.27694603,0.00030986,7]
[364636404,1749169875473,-934.99,0.00030986,7]
[364636405,1749169875483,-379.45,0.00030986,7]
[364636406,1749169875492,-480.0,0.00030986,7]
[364636407,1749169875501,-480.0,0.00030986,7]
[364636408,1749169875510,-151.0,0.00030986,7]
[364636409,1749169875519,-646.29,0.00030986,7]
[364636410,1749169875528,-515.87,0.00030986,7]
[364636411,1749169875538,-247.97,0.00030986,7]
[364636412,1749169875547,-480.0,0.00030986,7]
[364636413,1749169875556,-480.0,0.00030986,7]
[364636414,1749169875565,-604.81,0.00030986,7]
[364636415,1749169875575,-480.0,0.00030986,7]
[364636416,1749169875584,-480.0,0.00030986,7]
[364636417,1749169875593,-480.0,0.00030986,7]
[364636418,1749169875602,-480.0,0.00030986,7]
[364636419,1749169875612,-977.06,0.00030986,7]
[364636420,1749169875621,-480.0,0.00030986,7]
[364636421,1749169875630,-598.09,0.00030986,7]
[364636422,1749169875640,-542.37,0.00030986,7]
[364636423,1749169875649,-984.46,0.00030986,7]
[364636424,1749169875658,-609.89,0.00030986,7]
[364636425,1749169875667,-480.0,0.00030986,7]
[364636426,1749169875677,-480.0,0.00030986,7]
[364636427,1749169875686,-1197.76,0.00030986,7]
[364636428,1749169875695,-966.148999,0.00030986,7]
[364636429,1749169875707,-480.0,0.00030986,7]
[364636430,1749169875717,-528.73818453,0.00030986,7]
[364636431,1749169875726,-480.0,0.00030986,7]
[364636432,1749169875735,-480.0,0.00030986,7]
[364636433,1749169875745,-966.148999,0.00030986,7]
[364636434,1749169875755,-480.0,0.00030986,7]
[364636435,1749169875765,-633.04,0.00030986,7]
[364636436,1749169875774,-480.0,0.00030986,7]
[364636437,1749169875784,-801.52,0.00030986,7]
[364636438,1749169875794,-480.0,0.00030986,7]
[364636439,1749169875803,-238.02,0.00030986,7]
[364636440,1749169875813,-480.0,0.00030986,7]
[364636441,1749169875822,-998.49,0.00030986,7]
[364636442,1749169875831,-480.0,0.00030986,7]
[364636443,1749169875840,-480.0,0.00030986,7]
[364636444,1749169875850,-751.3,0.00030986,7]
[364636445,1749169875859,-480.0,0.00030986,7]
[364636446,1749169875868,-480.0,0.00030986,7]
[364636447,1749169875877,-976.73,0.00030986,7]
[364636448,1749169875886,-480.0,0.00030986,7]
[364636449,1749169875895,-560.65,0.00030986,7]
[364636450,1749169875904,-624.38,0.00030986,7]
[364636451,1749169875915,-480.0,0.00030986,7]
[364636452,1749169875925,-567.73,0.00030986,7]
[364636453,1749169875935,-1477.61,0.00030986,7]
[364636454,1749169875944,-480.0,0.00030986,7]
[364636455,1749169875955,-802.74,0.00030986,7]
[364636456,1749169875964,-480.0,0.00030986,7]
[364636457,1749169875974,-1744.01,0.00030986,7]
[364636458,1749169875983,-763.22,0.00030986,7]
[364636459,1749169875992,-538.96,0.00030986,7]
[364636460,1749169876003,-480.0,0.00030986,7]
[364636461,1749169876012,-480.0,0.00030986,7]
[364636462,1749169876022,-974.45,0.00030986,7]
[364636463,1749169876031,-484.957407,0.00030986,7]
[364636464,1749169876041,-824.48,0.00030986,7]
[364636465,1749169876050,-480.0,0.00030986,7]
[364636466,1749169876059,-480.0,0.00030986,7]
[364636467,1749169876069,-965.87,0.00030986,7]
[364636468,1749169876078,-480.0,0.00030986,7]
[364636469,1749169876087,-643.57,0.00030986,7]
[364636470,1749169876097,-895.07,0.00030986,7]
[364636471,1749169876106,-151.0,0.00030986,7]
[364636472,1749169876116,-1530.67,0.00030986,7]
[364636473,1749169876125,-630.12,0.00030986,7]
[364636474,1749169876135,-1015.68,0.00030986,7]
[364636475,1749169876145,-4473.44,0.00030986,7]
[364636476,1749169876155,-997.24,0.00030986,7]
[364636477,1749169876165,-611.76,0.00030986,7]
[364636478,1749169876174,-714.32,0.00030986,7]
[364636479,1749169876184,-1465.75,0.00030986,7]
[364636480,1749169876193,-792.82,0.00030986,7]
[364636481,1749169876203,-239.187392,0.00030986,7]
[364636482,1749169876213,-151.0,0.00030986,7]
[364636483,1749169876222,-5664.36,0.00030986,7]
[364636484,1749169876232,-208.634678,0.00030986,7]
[364636485,1749169876242,-480.0,0.00030986,7]
[364636486,1749169876252,-1067.54,0.00030986,7]
[364636487,1749169876261,-1841.39,0.00030986,7]
[364636488,1749169876271,-694.91,0.00030986,7]
[364636489,1749169876281,-480.0,0.00030986,7]
[364636490,1749169876290,-634.95,0.00030986,7]
[364636491,1749169876300,-10624.81,0.00030986,7]
[364636492,1749169876309,-301.637384,0.00030986,7]
[364636493,1749169876319,-5122.53,0.00030986,7]
[364636494,1749169876328,-1930.66,0.00030986,7]
[364636495,1749169876338,-480.0,0.00030986,7]
[364636496,1749169876349,-994.09,0.00030986,7]
[364636497,1749169876359,-1762.93,0.00030986,7]
[364636498,1749169876368,-301.637384,0.00030986,7]
[364636499,1749169876378,-3222.49,0.00030986,7]
[364636500,1749169876389,-151.0,0.00030986,7]
[364636501,1749169876399,-678.81,0.00030986,7]
[364636502,1749169876408,-480.0,0.00030986,7]
[364636503,1749169876420,-480.0,0.00030986,7]
[364636504,1749169876430,-841.12,0.00030986,7]
[364636505,1749169876440,-1808.93,0.00030986,7]
[364636506,1749169876449,-480.0,0.00030986,7]
[364636507,1749169876460,-151.0,0.00030986,7]
[364636508,1749169876470,-2980.01,0.00030986,7]
[364636509,1749169876480,-912.41,0.00030986,7]
[364636510,1749169876490,-1568.54,0.00030986,7]
[364636511,1749169876500,-499.22,0.00030986,7]
[364636512,1749169876511,-480.0,0.00030986,7]
[364636513,1749169876520,-838.35,0.00030986,7]
[364636514,1749169876530,-726.16,0.00030986,7]
[364636515,1749169876539,-480.0,0.00030986,7]
[364636516,1749169876548,-252.968101,0.00030986,7]
[364636517,1749169876559,-480.0,0.00030986,7]
[364636518,1749169876570,-480.0,0.00030986,7]
[364636519,1749169876580,-1969.03,0.00030986,7]
[364636520,1749169876590,-8804.99,0.00030986,7]
[364636521,1749169876600,-2057.51,0.00030986,7]
[364636522,1749169876610,-939.86,0.00030986,7]
[364636523,1749169876619,-482.38,0.00030986,7]
[364636524,1749169876629,-483.57,0.00030986,7]
[364636525,1749169876638,-4422.6,0.00030986,7]
[364636526,1749169876648,-480.0,0.00030986,7]
[364636527,1749169876658,-169.59741168,0.00030986,7]
[364636528,1749169876669,-1211.33,0.00030986,7]
[364636529,1749169876679,-480.0,0.00030986,7]
[364636530,1749169876688,-273.813344,0.00030986,7]
[364636531,1749169876699,-1514.33,0.00030986,7]
[364636532,1749169876709,-3546.61,0.00030986,7]
[364636533,1749169876719,-155.912852,0.00030986,7]
[364636534,1749169876729,-695.05,0.00030986,7]
[364636535,1749169876739,-1699.38,0.00030986,7]
[364636536,1749169876748,-1000.0,0.00030986,7]
[364636537,1749169876757,-273.813344,0.00030986,7]
[364636538,1749169876767,-1292.48,0.00030986,7]
[364636539,1749169876776,-151.0,0.00030986,7]
[364636540,1749169876789,-480.0,0.00030986,7]
[364636541,1749169876980,-1270.03,0.00030986,2]
[364636542,1749169876991,-783.86,0.00030986,7]
[364636543,1749169877000,-1448.57,0.00030986,7]
[364636544,1749169877010,-480.0,0.00030986,7]
[364636545,1749169877019,-1405.14,0.00030986,7]
[364636546,1749169877029,-955.4,0.00030986,7]
[364636547,1749169877039,-1230.15,0.00030986,7]
[364636548,1749169877048,-643.05,0.00030986,7]
[364636549,1749169877058,-1097.14,0.00030986,7]
[364636550,1749169877067,-1755.69,0.00030986,7]
[364636551,1749169877076,-151.0,0.00030986,7]
[364636552,1749169877086,-1023.18,0.00030986,7]
[364636553,1749169877096,-173.555393,0.00030986,7]
[364636554,1749169877105,-1239.18,0.00030986,7]
[364636555,1749169877115,-480.0,0.00030986,7]
[364636556,1749169877124,-173.555393,0.00030986,7]
[364636557,1749169877134,-480.0,0.00030986,7]
[364636558,1749169877143,-3590.07,0.00030986,7]
[364636559,1749169877153,-502.7,0.00030986,7]
[364636560,1749169877162,-2047.6,0.00030986,7]
[364636561,1749169877171,-480.0,0.00030986,7]
[364636562,1749169877181,-2664.01,0.00030986,7]
[364636563,1749169877191,-2108.29,0.00030986,7]
[364636564,1749169877200,-1756.48,0.00030986,7]
[364636565,1749169877211,-155.606155,0.00030986,7]
[364636566,1749169877221,-2786.75,0.00030986,7]
[364636567,1749169877231,-480.0,0.00030986,7]
[364636568,1749169877241,-992.87,0.00030986,7]
[364636569,1749169877251,-480.0,0.00030986,7]
[364636570,1749169877260,-3552.57,0.00030986,7]
[364636571,1749169877271,-480.0,0.00030986,7]
[364636572,1749169877281,-536.2,0.00030986,7]
[364636573,1749169877291,-480.0,0.00030986,7]
[364636574,1749169877301,-480.0,0.00030986,7]
[364636575,1749169877311,-1966.23,0.00030986,7]
[364636576,1749169877321,-1530.82,0.00030986,7]
[364636577,1749169877331,-4980.283864,0.00030986,7]
[364636578,1749169877344,-5095.06,0.00030986,7]
[364636579,1749169877354,-157.422861,0.00030986,7]
[364636580,1749169877364,-610.68,0.00030986,7]
[364636581,1749169877374,-4980.283864,0.00030986,7]
[364636582,1749169877385,-480.0,0.00030986,7]
[364636583,1749169877394,-1252.98,0.00030986,7]
[364636584,1749169877404,-151.0,0.00030986,7]
[364636585,1749169877415,-151.0,0.00030986,7]
[364636586,1749169877425,-1013.14,0.00030986,7]
[364636587,1749169877435,-1721.74,0.00030986,7]
[364636588,1749169877444,-1598.04,0.00030986,7]
[364636589,1749169877456,-157.422861,0.00030986,7]
[364636590,1749169877466,-162.767923,0.00030986,7]
[364636591,1749169877476,-151.0,0.00030986,7]
[364636592,1749169877486,-927.5,0.00030986,7]
[364636593,1749169877496,-1149.65,0.00030986,7]
[364636594,1749169877506,-1166.73,0.00030986,7]
[364636595,1749169877516,-480.0,0.00030986,7]
[364636596,1749169877526,-1043.06,0.00030986,7]
[364636597,1749169877536,-480.0,0.00030986,7]
[364636598,1749169877547,-3952.97,0.00030986,7]
[364636599,1749169877557,-667.22,0.00030986,7]
[364636600,1749169877567,-635.73,0.00030986,7]
[364636601,1749169877576,-582.95,0.00030986,7]
[364636602,1749169877586,-1842.83,0.00030986,7]
[364636603,1749169877596,-2151.06,0.00030986,7]
[364636604,1749169877608,-480.0,0.00030986,7]
[364636605,1749169877618,-480.0,0.00030986,7]
[364636606,1749169877628,-5721.92,0.00030986,7]
[364636607,1749169877637,-1757.26,0.00030986,7]
[364636608,1749169877648,-4358.7,0.00030986,7]
[364636609,1749169877659,-1283.13,0.00030986,7]
[364636610,1749169877670,-151.0,0.00030986,7]
[364636611,1749169877680,-796.57,0.00030986,7]
[364636612,1749169877690,-1954.11,0.00030986,7]
[364636613,1749169877701,-1753.46,0.00030986,7]
[364636614,1749169877712,-1790.89,0.00030986,7]
[364636615,1749169877722,-883.43,0.00030986,7]
[364636616,1749169877732,-480.0,0.00030986,7]
[364636617,1749169877742,-1308.85,0.00030986,7]
[364636618,1749169877752,-151.0,0.00030986,7]
[364636619,1749169877761,-480.0,0.00030986,7]
[364636620,1749169877771,-480.0,0.00030986,7]
[364636621,1749169877781,-480.0,0.00030986,7]
[364636622,1749169877791,-857.15,0.00030986,7]
[364636623,1749169877800,-1050.99,0.00030986,7]
[364636624,1749169877809,-656.07,0.00030986,7]
[364636625,1749169877819,-907.68,0.00030986,7]
[364636626,1749169877828,-1471.58,0.00030986,7]
[364636627,1749169877837,-983.31,0.00030986,7]
[364636628,1749169877847,-2471.56,0.00030986,7]
[364636629,1749169877857,-1842.14,0.00030986,7]
[364636630,1749169877867,-480.0,0.00030986,7]
[364636631,1749169877876,-150.0,0.00030986,2]
[364636632,1749169877886,-727.341524,0.00030986,7]
[364636633,1749169877896,-152.071432,0.00030986,7]
[364636634,1749169877906,-1360.2,0.00030986,7]
[364636635,1749169877915,-480.0,0.00030986,7]
[364636636,1749169877925,-480.0,0.00030986,7]
[364636637,1749169877934,-480.0,0.00030986,7]
[364636638,1749169877943,-1021.3,0.00030986,7]
[364636639,1749169877953,-480.0,0.00030986,7]
[364636640,1749169877963,-727.341524,0.00030986,7]
[364636641,1749169877973,-2266.2,0.00030986,7]
[364636642,1749169877982,-152.071432,0.00030986,7]
[364636643,1749169877992,-480.0,0.00030986,7]
[364636644,1749169878001,-757.74,0.00030986,7]
[364636645,1749169878011,-480.0,0.00030986,7]
[364636646,1749169878020,-5199.96,0.00030986,7]
[364636647,1749169878030,-667.5,0.00030986,7]
[364636648,1749169878040,-721.17,0.00030986,7]
[364636649,1749169878049,-1996.44,0.00030986,7]
[364636650,1749169878059,-1003.44,0.00030986,7]
[364636651,1749169878068,-450.0,0.00030986,2]
[364636652,1749169878078,-450.0,0.00030986,2]
[364636653,1749169878088,-399.934466,0.00030986,2]
[364636654,1749169878098,-1106.3,0.00030986,7]
[364636655,1749169878107,-407.30622059,0.00030986,7]
[364636656,1749169878117,-2701.39,0.00030986,7]
[364636657,1749169878126,-664.15,0.00030986,7]
[364636658,1749169878135,-480.0,0.00030986,7]
[364636659,1749169878145,-480.0,0.00030986,7]
[364636660,1749169878154,-1202.9,0.00030986,7]
[364636661,1749169878164,-1543.58,0.00030986,7]
[364636662,1749169878174,-562.27,0.00030986,7]
[364636663,1749169878183,-587.01,0.00030986,7]
[364636664,1749169878193,-480.0,0.00030986,7]
[364636665,1749169878202,-480.0,0.00030986,7]
[364636666,1749169878214,-12056.81,0.00030986,7]
[364636667,1749169878223,-17881.25,0.00030986,7]
[364636668,1749169878233,-725.97,0.00030986,7]
[364636669,1749169878242,-783.68,0.00030986,7]
[364636670,1749169878252,-523.31,0.00030986,7]
[364636671,1749169878264,-4166.34,0.00030986,7]
[364636672,1749169878274,-492.59,0.00030986,7]
[364636673,1749169878284,-2673.43,0.00030986,7]
[364636674,1749169878294,-480.0,0.00030986,7]
[364636675,1749169878303,-731.1,0.00030986,7]
[364636676,1749169878313,-480.0,0.00030986,7]
[364636677,1749169878323,-10488.24,0.00030986,7]
[364636678,1749169878332,-1105.24,0.00030986,7]
[364636679,1749169878344,-2200.46,0.00030986,7]
[364636680,1749169878354,-496.74,0.00030986,7]
[364636681,1749169878364,-894.07,0.00030986,7]
[364636682,1749169878374,-3195.01,0.00030986,7]
[364636683,1749169878384,-858.65,0.00030986,7]
[364636684,1749169878393,-777.87,0.00030986,7]
[364636685,1749169878402,-480.0,0.00030986,7]
[364636686,1749169878412,-480.0,0.00030986,7]
[364636687,1749169878421,-882.75,0.00030986,7]
[364636688,1749169878432,-20765.5,0.00030986,7]
[364636689,1749169878442,-5143.42,0.00030986,7]
[364636690,1749169878452,-672.27,0.00030986,7]
[364636691,1749169878464,-480.0,0.00030986,7]
[364636692,1749169878474,-480.0,0.00030986,7]
[364636693,1749169878484,-628.58,0.00030986,7]
[364636694,1749169878494,-480.0,0.00030986,7]
[364636695,1749169878504,-585.38,0.00030986,7]
[364636696,1749169878513,-2136.76,0.00030986,7]
[364636697,1749169878523,-968.97,0.00030986,7]
[364636698,1749169878532,-1010.0,0.00030986,7]
[364636699,1749169878542,-844.65,0.00030986,7]
[364636700,1749169878552,-549.69788948,0.00030986,2]
[364636701,1749169878562,-1526.53,0.00030986,7]
[364636702,1749169878571,-2074.53,0.00030986,7]
[364636703,1749169878581,-1391.46,0.00030986,7]
[364636704,1749169878591,-481.36,0.00030986,7]
[364636705,1749169878601,-1144.75,0.00030986,7]
[364636706,1749169878610,-480.0,0.00030986,2]
[364636707,1749169878620,-1496.25,0.00030986,7]
[364636708,1749169878630,-2088.12,0.00030986,7]
[364636709,1749169878641,-2429.04,0.00030986,7]
[364636710,1749169878651,-2148.42,0.00030986,7]
[364636711,1749169878660,-550.16,0.00030986,2]
[364636712,1749169878670,-1006.19,0.00030986,7]
[364636713,1749169878681,-4057.88,0.00030986,7]
[364636714,1749169878690,-75398.65,0.00030986,7]
[364636715,1749169878700,-831.38,0.00030986,7]
[364636716,1749169878711,-916.23,0.00030986,7]
[364636717,1749169878721,-1158.74,0.00030986,7]
[364636718,1749169878730,-1256.48,0.00030986,7]
[364636719,1749169878739,-750.6,0.00030986,7]
[364636720,1749169878748,-1384.3,0.00030986,7]
[364636721,1749169878758,-657.45,0.00030986,7]
[364636722,1749169878768,-845.15,0.00030986,7]
[364636723,1749169878777,-1850.13,0.00030986,7]
[364636724,1749169878786,-3678.84,0.00030986,7]
[364636725,1749169878795,-480.0,0.00030986,7]
[364636726,1749169878805,-1543.72,0.00030986,7]
[364636727,1749169878817,-940.41,0.00030986,7]
[364636728,1749169878833,-480.0,0.00030986,7]
[364636729,1749169878842,-480.0,0.00030986,7]
[364636730,1749169878851,-480.0,0.00030986,7]
[364636731,1749169878861,-2140.61,0.00030986,7]
[364636732,1749169878870,-884.63,0.00030986,7]
[364636733,1749169878880,-676.31,0.00030986,7]
[364636734,1749169878890,-480.0,0.00030986,7]
[364636735,1749169878900,-4494.31,0.00030986,7]
[364636736,1749169878909,-480.0,0.00030986,7]
[364636737,1749169878918,-1236.81,0.00030986,7]
[364636738,1749169878928,-480.0,0.00030986,7]
[364636739,1749169878937,-702.14,0.00030986,7]
[364636740,1749169878947,-151.0,0.00031,7]
[364636741,1749169878957,-1799.99999902,0.00031,32]
[364636742,1749169878967,-125035.48,0.00031,7]
[364636743,1749169878977,-2667.57845962,0.00031,2]
[364636744,1749169878986,-178.501279,0.00031,7]
[364636745,1749169878996,-178.501279,0.00031,7]
[364636746,1749169879005,-151.0,0.00031,7]
[364636747,1749169879015,-301.471898,0.00031,7]
[364636748,1749169879024,-151.0,0.00031,7]
[364636749,1749169879034,-151.0,0.00031,7]
[364636750,1749169879043,-266.915365,0.00031,7]
[364636751,1749169879052,-151.0,0.00031,7]
[364636752,1749169879062,-266.915365,0.00031,7]
[364636753,1749169879072,-368.45275665,0.00031,2]
[364636754,1749169879080,-150.0,0.00031012,7]
[364636755,1749169879089,-500.0,0.00031012,7]
[364636756,1749169879098,-554.3629456,0.00031012,7]
[364636757,1749169879107,-150.0,0.00031012,7]
[364636758,1749169879116,-150.0,0.00031012,7]
[364636759,1749169879126,-500.0,0.00031012,7]
[364636760,1749169879135,-500.0,0.00031012,7]
[364636761,1749169879145,-150.0,0.00031012,7]
[364636762,1749169879155,-501.57434714,0.00031012,7]
[364636763,1749169879164,-500.0,0.00031012,7]
[364636764,1749169879174,-150.0,0.00031012,7]
[364636765,1749169879184,-500.0,0.00031012,7]
[364636766,1749169879193,-150.0,0.00031012,7]
[364636767,1749169879202,-500.0,0.00031012,7]
[364636768,1749169879213,-200.0,0.00031012,7]
[364636769,1749169879223,-150.0,0.00031012,7]
[364636770,1749169879233,-150.0,0.00031012,7]
[364636771,1749169879243,-150.0,0.00031012,7]
[364636772,1749169879252,-200.0,0.00031012,7]
[364636773,1749169879262,-150.0,0.00031012,7]
[364636774,1749169879271,-500.0,0.00031012,7]
[364636775,1749169879280,-500.0,0.00031012,2]
[364636776,1749169879290,-500.0,0.00031012,2]
[364636777,1749169879300,-500.0,0.00031012,2]
[364636778,1749169879309,-150.0,0.00031012,2]
[364636779,1749169879319,-500.0,0.00031012,2]
[364636780,1749169879329,-500.0,0.00031012,2]
[364636781,1749169879340,-500.0,0.00031012,2]
[364636782,1749169879349,-503.0,0.00031012,2]
[364636783,1749169879359,-150.0,0.00031019,2]
[364636784,1749169879369,-1000.0,0.00031021,5]
[364636785,1749169879379,-1046.7464763,0.00031021,5]
[364636786,1749169879388,-1000.0,0.00031021,5]
[364636787,1749169879399,-596.21861823,0.00031037,3]
[364636788,1749169879409,-150.0,0.00031037,2]
[364636789,1749169879420,-200.0,0.0003104,7]
[364636790,1749169879431,-500.0,0.0003104,7]
[364636791,1749169879442,-150.0,0.0003104,7]
[364636792,1749169879453,-500.0,0.0003104,7]
[364636793,1749169879469,-500.0,0.0003104,7]
[364636794,1749169879479,-150.0,0.0003104,7]
[364636795,1749169879490,-500.0,0.0003104,7]
[364636796,1749169879500,-200.0,0.0003104,7]
[364636797,1749169879513,-500.0,0.0003104,7]
[364636798,1749169879524,-253.53766569,0.0003104,7]
[364636799,1749169879535,-500.0,0.0003104,7]
[364636800,1749169879546,-190.67426413,0.0003104,7]
[364636801,1749169879557,-223.08317862,0.0003104,7]
[364636802,1749169879568,-150.0,0.0003104,7]
[364636803,1749169879578,-150.0,0.0003104,7]
[364636804,1749169879587,-500.0,0.0003104,7]
[364636805,1749169879598,-500.0,0.0003104,2]
[364636806,1749169879608,-500.0,0.0003104,2]
[364636807,1749169879618,-500.0,0.0003104,2]
[364636808,1749169879628,-150.0,0.0003104,2]
[364636809,1749169879638,-500.0,0.0003104,2]
[364636810,1749169879648,-500.0,0.0003104,2]
[364636811,1749169879657,-500.0,0.0003104,2]